[Event "Polish Ekstraliga 2024"]
[Site "Walbrzych"]
[Date "2024.10.07"]
[Round "1.11"]
[White "Gumularz, Szymon"]
[Black "Seemann, Jakub"]
[Result "1-0"]
[ECO "E49"]
[WhiteElo "2559"]
[BlackElo "2489"]
[Annotator "TA"]
[PlyCount "143"]
[EventDate "2024.10.05"]
[EventType "team-tourn"]
[EventCountry "POL"]
[SourceTitle "playchess.com"]
[Source "ChessBase"]
[SourceQuality "1"]
[WhiteTeam "Polonia Wroclaw"]
[BlackTeam "Katowice"]
[TimeControl "40/5400+30:1800+30"]

{[%evp 18,143,0,0,0,0,17,0,19,2,110,-10,0,-12,5,0,13,-8,0,0,0,0,28,7,28,9,32,14,100,81,95,52,60,60,175,97,134,118,150,152,272,256,288,285,262,234,693,415,462,463,389,220,230,236,229,242,181,227,227,218,237,234,225,160,196,171,176,175,284,284,284,284,284,284,284,284,284,283,714,706,699,678,757,757,757,750,750,743,743,743,728,728,714,714,706,699,711,692,685,597,593,262,360,208,29964,29966,29966,29967,29967,29968,29968,29969,29972,29974,29974,29974,29974,29974,29974,29975,29975,29975,29975,29976,29981,29982,29982,29983]} 1. d4 {[%emt 0:00:04]} Nf6 {[%emt 0:00:05]} 2. c4 {[%emt 0:00:07]} e6 {[%emt 0:00:05]} 3. Nc3 {[%emt 0:00:06]} Bb4 {[%emt 0:00:11]} 4. e3 {[%emt 0:00:07]} O-O {[%emt 0:00:42]} 5. Bd3 {[%emt 0:00:09]} d5 {[%emt 0:00:06]} 6. a3 {[%emt 0:00:20]} Bxc3+ {[%emt 0:00:08]} 7. bxc3 {[%emt 0:00:07]} dxc4 {[%emt 0:00:14]} 8. Bxc4 {[%emt 0:00:08]} c5 {[%emt 0:00:04]} 9. Nf3 {[%emt 0:00:18]} Qc7 {[%emt 0:00:56]} 10. Be2 {[%emt 0:00:07]} b6 {[%emt 0:09:21]} 11. Bb2 {[%emt 0:00:35]} Ba6 {[%emt 0:02:49]} 12. c4 {[%emt 0:00:24]} cxd4 {[%emt 0:09:23] The position is equal.} 13. Nxd4 {[%emt 0:01:55]} Rd8 {[%emt 0:11:21]} (13... Bb7 $11) 14. Qa4 {[%emt 0:06:08]} (14. Bf3 $16 Nbd7 (14... Bb7 $2 15. Nb5 $18) 15. Bxa8 Rxa8 16. O-O) 14... Bb7 {[%emt 0:02:41][%cal Ob8d7]} 15. O-O {[%emt 0:00:08]} Nc6 {[%emt 0:02:51]} 16. Rfd1 {[%emt 0:10:47]} Ne4 {[%emt 0:13:07]} 17. Qc2 {[%emt 0:02:16]} Nxd4 {[%emt 0:06:52]} 18. exd4 {[%emt 0:01:39]} Qf4 {[%emt 0:03:02]} 19. Bd3 {[%emt 0:07:47]} Nf6 {[%emt 0:01:39]} 20. f3 {[%emt 0:01:09] Wards off Ng4} Rac8 {[%emt 0:01:28]} 21. Qe2 {[%emt 0:00:59]} h6 {[%emt 0:02:48]} 22. a4 {[%emt 0:00:13][%cal Ba3a4,Ba4a5,Ba5a6][%mdl 32]} Ne8 {[%emt 0:06:15]} (22... Nh5 $11) 23. a5 $16 {[%emt 0:06:35]} Qc7 {[%emt 0:01:54]} 24. a6 {[%emt 0:02:16]} Ba8 {[%emt 0:00:30]} 25. Rac1 {[%emt 0:03:06][%cal Od4d5]} Nd6 {[%emt 0:05:15]} (25... Qf4 $14) 26. Kh1 {[%emt 0:03:44]} ({White should play} 26. d5 $18) 26... Re8 {[%emt 0:02:11]} 27. Qf2 {[%emt 0:06:24]} Qe7 {[%emt 0:04:36]} 28. Re1 $1 {[%emt 0:05:55] And now c5 would win.} Qg5 {[%emt 0:01:51] [#]} (28... Qf8 $16 29. Ba3 Red8) 29. d5 $1 $18 {[%emt 0:18:25][%mdl 512]} exd5 {[%emt 0:01:33]} 30. h4 $1 {[%emt 0:00:48]} Qd8 {[%emt 0:03:58][%cal Rd5c4] [#]} 31. Qg3 $1 {[%emt 0:03:01][%csl Gb2][%cal Rg3g7]} f6 $2 {[%emt 0:00:38]} (31... Rxe1+ 32. Rxe1 Qf8) 32. Qg6 {[%emt 0:01:59]} dxc4 {[%emt 0:05:27]} 33. Qh7+ {[%emt 0:00:15]} Kf8 {[%emt 0:00:01]} 34. Bg6 {[%emt 0:00:12]} (34. Rxe8+ $142 Kxe8 (34... Qxe8 $2 {is the wrong capture.} 35. Bg6 $18) 35. Bg6+ Kd7 36. Rd1 (36. Qxg7+ Qe7 $18)) 34... Rxe1+ {[%emt 0:02:13]} 35. Rxe1 {[%emt 0:00:01]} Nf7 {[%emt 0:00:08] Prevents Qh8+.} 36. Ba3+ {[%emt 0:02:18] This pair of bishops is nice.} Rc5 {[%emt 0:00:01][%cal Oa8c6]} 37. Bxc5+ $40 {[%emt 0:03:56][%mdl 128] White attacks with force.} (37. Bc2 $142 Qd7 38. Bxc5+ bxc5 39. Rb1) 37... bxc5 {[%emt 0:00:03]} 38. Bxf7 {[%emt 0:00:46]} Kxf7 {[%emt 0:00:02][%mdl 4096] Endgame. KQR-KQB} 39. Qf5 {[%emt 0:04:13]} Qd5 {[%emt 0:00:04]} 40. Qc8 {[%emt 0:00:00][%csl Ge1][%cal Rc8e8]} Kg6 {[%emt 0:00:00]} 41. Qg4+ {[%emt 0:16:54]} Kh7 {[%emt 0:12:40]} 42. Rc1 {[%emt 0:01:38]} Bc6 {[%emt 0:05:16]} (42... c3 {was called for.}) 43. Qxc4 {[%emt 0:01:59]} Qxc4 {[%emt 0:00:07]} 44. Rxc4 {[%emt 0:00:03] KR-KB} Bb5 {[%emt 0:00:02]} 45. Rxc5 {[%emt 0:00:05]} Bxa6 {[%emt 0:00:01]} 46. Ra5 {[%emt 0:00:11]} Bd3 {[%emt 0:02:13]} 47. Rxa7 {[%emt 0:00:07]} h5 $2 {[%emt 0:00:42]} (47... Kg8 48. Kg1 Bg6) 48. Kg1 {[%emt 0:00:08]} Kg6 {[%emt 0:00:12]} 49. Kf2 {[%emt 0:00:03]} Bc4 {[%emt 0:00:12]} 50. Rc7 {[%emt 0:00:05]} Bb5 {[%emt 0:00:04]} 51. Ke3 {[%emt 0:01:00]} Bf1 {[%emt 0:01:07]} 52. Rc1 {[%emt 0:00:05]} Bb5 {[%emt 0:00:16]} 53. Kd4 {[%emt 0:00:03]} Be2 {[%emt 0:02:38]} 54. Re1 {[%emt 0:00:14]} Ba6 {[%emt 0:00:12]} 55. Ra1 {[%emt 0:10:54]} Be2 {[%emt 0:00:36]} 56. Ke4 {[%emt 0:00:15]} Bb5 {[%emt 0:00:18]} 57. Kd5 {[%emt 0:00:24]} Kf5 {[%emt 0:02:11]} 58. Rb1 {[%emt 0:05:49]} Be2 {[%emt 0:01:54]} 59. Rb4 {[%emt 0:01:04]} (59. Rb2 $142 Bf1 60. g3) 59... g5 {[%emt 0:05:40]} 60. Kd6 {[%emt 0:00:45]} (60. Ra4 $142) 60... gxh4 $2 {[%emt 0:00:21]} (60... Bf1 $18 61. g3 Be2) 61. Rxh4 {[%emt 0:00:17] White mates.} Kg5 {[%emt 0:00:15]} 62. Ra4 {[%emt 0:00:33]} Bf1 {[%emt 0:07:27] [#]} 63. g3 $1 {[%emt 0:01:08]} Be2 {[%emt 0:00:29]} 64. Rf4 {[%emt 0:00:27]} Bd3 {[%emt 0:00:32]} 65. Ke6 {[%emt 0:00:18]} f5 {[%emt 0:00:26]} 66. Ke5 {[%emt 0:00:16]} Bc2 {[%emt 0:00:17]} 67. Rh4 {[%emt 0:00:33]} Bd1 {[%emt 0:00:36]} 68. f4+ {[%emt 0:00:07]} Kg6 {[%emt 0:00:03]} 69. Rh2 {[%emt 0:00:07]} Bg4 {[%emt 0:00:07]} 70. Rb2 {[%emt 0:00:08]} h4 {[%emt 0:00:29]} 71. gxh4 {[%emt 0:00:04]} Kh5 {[%emt 0:00:24]} 72. Rh2 {[%emt 0:00:20] Weighted Error Value: White=0.35/Black=0.56.  Mistake:       	White=5     	Black=8      Inaccurate:     	White=2     	Black=3      OK:         	White=10    	Black=8      Best:        	White=3     	Black=6      Strong:       	White=3     	---        Brilliant:      	White=1     	---} 1-0

[Event "Polish Ekstraliga 2024"]
[Site "Walbrzych"]
[Date "2024.10.07"]
[Round "1.12"]
[White "Socko, Monika"]
[Black "Starosta, Martyna"]
[Result "1/2-1/2"]
[ECO "C03"]
[WhiteElo "2419"]
[BlackElo "2325"]
[Annotator "RC"]
[PlyCount "71"]
[EventDate "2024.10.05"]
[EventType "team-tourn"]
[EventCountry "POL"]
[SourceTitle "playchess.com"]
[Source "ChessBase"]
[SourceQuality "1"]
[WhiteTeam "Katowice"]
[BlackTeam "Polonia Wroclaw"]
[TimeControl "40/5400+30:1800+30"]

1. e4 {[%emt 0:00:02]} e6 {[%emt 0:00:04]} 2. d4 {[%emt 0:00:03]} d5 {[%emt 0:00:04]} 3. Nd2 {[%emt 0:00:03]} Be7 {[%emt 0:00:05]} 4. e5 {[%emt 0:00:04]} c5 {[%emt 0:00:04]} 5. c3 {[%emt 0:00:05]} cxd4 {[%emt 0:01:43]} 6. cxd4 {[%emt 0:00:46]} Nc6 {[%emt 0:00:22]} 7. Ndf3 {[%emt 0:01:33]} Qb6 {[%emt 0:03:30]} 8. Bd3 {[%emt 0:00:19]} Bd7 {[%emt 0:10:48]} 9. Ne2 {[%emt 0:01:06]} Nb4 {[%emt 0:02:26]} 10. Bb1 {[%emt 0:00:37]} Bb5 {[%emt 0:03:24]} 11. O-O {[%emt 0:07:52]} Qa6 {[%emt 0:02:27]} 12. Re1 {[%emt 0:00:23]} Bd3 {[%emt 0:08:06]} 13. Nc3 {[%emt 0:10:39]} Bxb1 {[%emt 0:02:39]} 14. Rxb1 {[%emt 0:03:44]} Nxa2 {[%emt 0:11:51]} 15. Nxa2 {[%emt 0:00:19]} Qxa2 {[%emt 0:00:05]} 16. Bd2 {[%emt 0:00:04]} Qc4 {[%emt 0:03:43]} 17. Re3 {[%emt 0:01:26]} Bd8 {[%emt 0:03:00]} 18. Rb3 {[%emt 0:08:53]} Qc6 {[%emt 0:01:13]} 19. Bb4 {[%emt 0:09:55]} Ne7 {[%emt 0:03:35]} 20. Bxe7 {[%emt 0:07:26]} Kxe7 {[%emt 0:09:55]} 21. Qd2 {[%emt 0:05:05]} Bb6 {[%emt 0:02:01]} 22. Qg5+ {[%emt 0:05:24]} Kf8 {[%emt 0:00:46]} 23. Rc3 {[%emt 0:01:00]} Qd7 {[%emt 0:01:11]} 24. Rbc1 {[%emt 0:00:26]} h6 {[%emt 0:02:12]} 25. Qg4 {[%emt 0:02:45]} Ba5 {[%emt 0:03:28]} 26. b4 {[%emt 0:03:35]} Bd8 {[%emt 0:00:40]} 27. h4 {[%emt 0:00:04]} a5 {[%emt 0:09:12]} 28. bxa5 {[%emt 0:05:41]} Bxa5 {[%emt 0:01:23]} 29. R3c2 {[%emt 0:04:34]} Kg8 {[%emt 0:01:09]} 30. Qh5 {[%emt 0:00:59]} b5 {[%emt 0:03:22]} 31. Ra2 {[%emt 0:04:58]} Ra7 {[%emt 0:01:27]} 32. Rb1 {[%emt 0:00:50]} Kh7 {[%emt 0:04:17]} 33. Ng5+ {[%emt 0:03:19]} Kg8 {[%emt 0:00:04]} 34. Nf3 {[%emt 0:00:07]} Kh7 {[%emt 0:01:05]} 35. Ng5+ {[%emt 0:01:07]} Kg8 {[%emt 0:00:08]} 36. Nf3 {[%emt 0:00:14]} 1/2-1/2

[Event "Polish Ekstraliga 2024"]
[Site "Walbrzych"]
[Date "2024.10.07"]
[Round "1.13"]
[White "Licznerski, Lukasz"]
[Black "Bluebaum, Matthias"]
[Result "0-1"]
[ECO "B15"]
[WhiteElo "2430"]
[BlackElo "2646"]
[Annotator "TA"]
[PlyCount "87"]
[EventDate "2024.10.05"]
[EventType "team-tourn"]
[EventCountry "POL"]
[SourceTitle "playchess.com"]
[Source "ChessBase"]
[SourceQuality "1"]
[WhiteTeam "Wisznia Mala"]
[BlackTeam "Raciborz"]
[TimeControl "40/5400+30:1800+30"]

{[%evp 14,87,18,33,52,28,64,9,22,26,11,0,0,0,0,0,0,0,0,0,0,-81,-86,-76,-91,-92,-88,-91,-91,-83,-61,-73,-45,-60,-55,-47,0,-123,-127,-120,-127,-120,-120,-111,-110,-110,0,-93,0,-107,-106,-120,-120,-120,-114,-234,-241,-241,-232,-239,-232,-408,-414,-398,-398,-668,-500,-483,-477,-475,-458,-1362,-1332,-1129,-992,-6111]} 1. e4 {[%emt 0:00:03]} c6 {[%emt 0:00:10]} 2. d4 {[%emt 0:00:03]} d5 {[%emt 0:00:04]} 3. Nc3 {[%emt 0:00:32]} dxe4 {[%emt 0:00:11]} 4. Nxe4 {[%emt 0:00:03]} Nf6 {[%emt 0:00:10]} 5. Nxf6+ {[%emt 0:00:04]} exf6 {[%emt 0:00:04]} 6. c3 {[%emt 0:00:27]} Bd6 {[%emt 0:00:05]} 7. Bd3 {[%emt 0:00:05]} O-O {[%emt 0:00:04]} 8. Qc2 {[%emt 0:00:12]} c5 {[%emt 0:00:31]} 9. Ne2 {[%emt 0:12:02]} g6 {[%emt 0:00:27]} 10. Be3 {[%emt 0:08:16]} ({Better is} 10. h4 $14) 10... Qc7 $11 {[%emt 0:00:17] The position is equal.} 11. dxc5 {[%emt 0:14:22]} Bxc5 {[%emt 0:00:04]} 12. Bxc5 {[%emt 0:00:15]} Qxc5 {[%emt 0:00:05]} 13. O-O {[%emt 0:00:08]} Nc6 {[%emt 0:00:40]} 14. Rfe1 {[%emt 0:04:32]} Bd7 {[%emt 0:10:55]} 15. Rad1 {[%emt 0:04:34][%cal Od3g6]} Rad8 {[%emt 0:00:46]} 16. Be4 {[%emt 0:00:38]} Rfe8 {[%emt 0:06:59]} 17. Bxc6 {[%emt 0:11:53]} (17. h3 $11 {keeps the balance.}) 17... Bxc6 $17 {[%emt 0:06:43]} 18. Rxd8 {[%emt 0:20:01]} Rxd8 {[%emt 0:01:29]} 19. Qc1 {[%emt 0:04:17] White is weak on the light squares} Qd5 {[%emt 0:03:48][%csl Gc6,LRa2,LRg2][%cal Rd5g2] [#] Black is much more active.} 20. f3 {[%emt 0:00:05]} Qxa2 {[%emt 0:02:28]} 21. Nd4 {[%emt 0:00:02]} Bd7 {[%emt 0:06:02]} 22. h4 {[%emt 0:01:16]} Re8 {[%emt 0:06:25]} 23. Rxe8+ {[%emt 0:03:51]} Bxe8 $15 {[%emt 0:02:45][%mdl 4096] Endgame. KQB-KQN} 24. Qe3 {[%emt 0:08:00]} Ba4 {[%emt 0:01:37]} (24... Kf8 $15 {might be stronger.} 25. Qh6+ Kg8) 25. Qf4 {[%emt 0:01:23]} (25. Qe7 $1 $11) 25... Qxb2 $17 {[%emt 0:05:15]} 26. Qb8+ {[%emt 0:00:04]} Kg7 {[%emt 0:00:05]} 27. Qxa7 {[%emt 0:00:06]} Qc1+ {[%emt 0:06:05]} 28. Kf2 {[%emt 0:00:21]} Qd2+ {[%emt 0:00:22]} 29. Kf1 {[%emt 0:00:17]} Qc1+ {[%emt 0:04:55]} 30. Kf2 {[%emt 0:00:12]} Qb2+ {[%emt 0:00:17]} 31. Kg1 $1 {[%emt 0:04:22]} Bd7 {[%emt 0:00:04]} 32. Qc5 {[%emt 0:00:14]} Qc1+ {[%emt 0:00:36]} 33. Kf2 {[%emt 0:00:01]} Qf4 {[%emt 0:05:50]} 34. Qb4 {[%emt 0:02:00]} (34. Qd5 $17 {was necessary.} Qxh4+ 35. Ke2) 34... Qxh4+ $19 {[%emt 0:02:10]} 35. Kf1 {[%emt 0:00:02]} Qh1+ {[%emt 0:01:43]} 36. Kf2 {[%emt 0:00:01] [#]} Qh2 $1 {[%emt 0:00:34] Threatens to win with ...Bh3.} 37. Qxb7 $2 {[%emt 0:01:54]} (37. Kf1 {might work better.}) 37... Bh3 {[%emt 0:00:06]} 38. f4 {[%emt 0:02:01]} Qxf4+ {[%emt 0:00:04]} 39. Nf3 $2 {[%emt 0:00:15]} (39. Qf3 Qd2+ 40. Kg3) 39... Be6 {[%emt 0:00:59] Black is clearly winning.} 40. Qb4 {[%emt 0:00:00]} Bc4 {[%emt 0:00:00] aiming for ...g5.} 41. Qc5 {[%emt 0:03:11]} h5 {[%emt 0:03:45]} 42. Qe3 {[%emt 0:02:16]} (42. Qd4 $142 Qxd4+ 43. Nxd4) 42... Qxe3+ {[%emt 0:00:34]} 43. Kxe3 {[%emt 0:00:02]} Bd5 {[%emt 0:00:09] ...Bxf3 is the strong threat.} 44. Kd4 {Weighted Error Value: White=0.46/Black=0.20 (precise) .  Mistake:       	White=7     	Black=1      Inaccurate:     	---       	Black=2      OK:         	White=12    	Black=11     Best:        	White=8     	Black=8      Strong:       	White=1     	Black=1} 0-1

[Event "Polish Ekstraliga 2024"]
[Site "Walbrzych"]
[Date "2024.10.07"]
[Round "1.14"]
[White "Donchenko, Alexander"]
[Black "Sabuk, Piotr"]
[Result "1-0"]
[ECO "A08"]
[WhiteElo "2626"]
[BlackElo "2402"]
[Annotator "TA"]
[PlyCount "85"]
[EventDate "2024.10.05"]
[EventType "team-tourn"]
[EventCountry "POL"]
[SourceTitle "playchess.com"]
[Source "ChessBase"]
[SourceQuality "1"]
[WhiteTeam "Raciborz"]
[BlackTeam "Wisznia Mala"]
[TimeControl "40/5400+30:1800+30"]

{[%evp 13,85,0,16,0,0,0,0,0,0,0,48,-47,-54,-60,0,7,33,20,0,0,0,0,40,46,37,0,0,0,-2,0,0,0,0,-11,41,27,26,-29,-17,-21,-24,-25,0,0,0,0,0,0,0,-5,0,0,0,0,0,0,0,-483,-5,-5,309,309,309,302,301,300,500,506,494,472,743,698,1997,1560]} 1. Nf3 {[%emt 0:00:02]} d5 {[%emt 0:00:11]} 2. g3 {[%emt 0:00:10]} Nf6 {[%emt 0:00:27]} 3. Bg2 {[%emt 0:00:07]} c5 {[%emt 0:00:31]} 4. O-O {[%emt 0:00:21]} e6 {[%emt 0:01:31]} 5. d3 {[%emt 0:00:27]} Nc6 {[%emt 0:02:34]} 6. e4 {[%emt 0:00:30]} Be7 {[%emt 0:01:11]} 7. Qe2 {[%emt 0:01:17] 7.Bf4 is setting a new trend.} h6 {[%emt 0:01:43] C00: French: Unusual White 2nd moves.} 8. e5 {[%emt 0:04:47]} Nd7 {[%emt 0:11:21]} 9. c4 {[%emt 0:00:45]} d4 {[%emt 0:03:11]} 10. Nbd2 {[%emt 0:07:31]} Qc7 {[%emt 0:02:17]} 11. Ne4 $146 {[%emt 0:07:55]} ({Predecessor:} 11. Re1 b6 12. Nf1 Bb7 13. h4 O-O-O 14. a3 Rdg8 15. Bd2 g5 16. hxg5 hxg5 17. g4 {1-0 Moya Albaladejo,J (1876)-Perez Beltran,S (1802) Almeria Sola Memorial-B 2nd 2015 (6)}) 11... g5 {[%emt 0:26:22]} (11... a5 $11 {is superior.}) 12. Re1 {[%emt 0:18:25]} ({Better is} 12. h4 $14) 12... Ndxe5 $15 {[%emt 0:05:29]} 13. Nexg5 {[%emt 0:06:33]} Ng6 {[%emt 0:04:04]} (13... hxg5 $15 14. Nxe5 Nxe5 15. Qxe5 Qxe5 16. Rxe5 f6) 14. Ne4 $11 {[%emt 0:01:35]} Bd7 {[%emt 0:01:27]} 15. h4 {[%emt 0:05:51]} f5 {[%emt 0:01:40]} 16. Ned2 {[%emt 0:00:58]} h5 {[%emt 0:03:56]} 17. a3 {[%emt 0:05:46]} a5 {[%emt 0:06:25]} 18. Nf1 {[%emt 0:01:10]} f4 {[%emt 0:02:00]} 19. Qe4 {[%emt 0:06:02]} Rg8 {[%emt 0:01:02]} 20. Bxf4 {[%emt 0:01:01]} Nxf4 {[%emt 0:00:26]} 21. Qxf4 {[%emt 0:00:46]} Qxf4 {[%emt 0:00:45]} 22. gxf4 {[%emt 0:00:10]} O-O-O {[%emt 0:03:29]} 23. Ng3 {[%emt 0:03:57]} Rg4 {[%emt 0:11:48]} (23... Rdf8 $11) 24. Re4 $14 {[%emt 0:08:08]} (24. Nxh5 Bxh4 25. f5 exf5 26. Nxh4 Rxh4 $15) 24... Bxh4 {[%emt 0:03:16]} 25. Nxh5 {[%emt 0:00:38]} (25. Nxh4 $142 Rxh4 26. f5 Rxe4 27. Nxe4) 25... Rh8 {[%emt 0:01:32]} 26. Nxh4 {[%emt 0:02:38]} Rxh5 {[%emt 0:01:01]} 27. Nf3 {[%emt 0:00:06]} Rf5 {[%emt 0:00:44]} 28. Rae1 {[%emt 0:05:11]} Rfxf4 {[%emt 0:00:14]} 29. Rxf4 {[%emt 0:00:07]} Rxf4 {[%emt 0:00:01]} 30. Ng5 {[%emt 0:00:07]} Nd8 {[%emt 0:03:35]} 31. Bh3 {[%emt 0:02:19]} Rf6 {[%emt 0:00:46]} 32. Kg2 {[%emt 0:04:21]} Rg6 {[%emt 0:00:42]} 33. f4 {[%emt 0:00:01]} Nf7 {[%emt 0:00:39]} 34. Rxe6 {[%emt 0:00:45]} (34. Bxe6 Nxg5 35. Bxd7+ Kxd7 $15) 34... Rg8 {[%emt 0:00:38]} (34... Bxe6 $6 35. Bxe6+ Rxe6 36. Nxe6 $16) (34... Rg7 35. Re8+ Kc7 36. Re7 Nxg5 37. Rxd7+ (37. Rxg7 Nxh3 38. Kf3 Kd6 $11) 37... Rxd7 38. Bxd7 (38. fxg5 $2 Rg7 $19) 38... Kxd7 39. fxg5) 35. Kh2 $2 {[%emt 0:01:01][%mdl 8192]} (35. Kf2 $11 Nxg5 36. fxg5) 35... Nxg5 $2 {[%emt 0:00:17]} ({Black should play} 35... Rh8 $19 {...Nxg5 would now be deadly.} 36. Kg2 Nxg5 (36... Rxh3 $2 37. Nxh3 Bxe6 38. Nf2 $19) 37. fxg5 Rxh3 38. Kxh3 Bxe6+ 39. Kg3 Bf5) 36. fxg5 $11 {[%emt 0:00:01]} Rg7 $2 {[%emt 0:00:42][%mdl 8192] [#]} ({Don't blunder} 36... Rxg5 $2 37. Re8+ Kc7 38. Re7 $18) (36... Kb8 $11 {and Black is okay.} 37. Rh6 (37. Re5 $2 Rh8 $19) 37... Bxh3 38. Rxh3 Rxg5) 37. Re8+ $1 $18 {[%emt 0:00:40]} Kc7 {[%emt 0:00:02]} 38. Bxd7 {[%emt 0:00:04]} Kxd7 {[%emt 0:00:26]} 39. Re5 {[%emt 0:00:02]} b6 $2 {[%emt 0:00:44]} (39... Kd6 40. Rd5+ Ke6 41. Rxc5 b6) 40. Kg3 $18 {[%emt 0:00:00]} Kd6 {[%emt 0:00:00]} 41. Kf4 {[%emt 0:03:47]} Rf7+ {[%emt 0:08:19]} (41... a4 $142 42. Re2 Rg8) 42. Rf5 $18 {[%emt 0:00:39]} Re7 {[%emt 0:01:46]} 43. g6 {[%emt 0:01:26]} 1-0

[Event "Polish Ekstraliga 2024"]
[Site "Walbrzych"]
[Date "2024.10.07"]
[Round "1.15"]
[White "Kuzmicz, Krystian"]
[Black "Huschenbeth, Niclas"]
[Result "1/2-1/2"]
[ECO "B20"]
[WhiteElo "2471"]
[BlackElo "2600"]
[Annotator "TA"]
[PlyCount "87"]
[EventDate "2024.10.05"]
[EventType "team-tourn"]
[EventCountry "POL"]
[SourceTitle "playchess.com"]
[Source "ChessBase"]
[SourceQuality "1"]
[WhiteTeam "Wisznia Mala"]
[BlackTeam "Raciborz"]
[TimeControl "40/5400+30:1800+30"]

{[%evp 18,87,0,5,0,0,0,0,-12,-4,16,12,13,13,20,16,24,24,25,29,22,14,22,18,42,35,36,35,40,30,39,38,66,63,96,73,187,102,131,126,127,127,129,128,108,120,132,114,100,94,89,94,106,102,104,97,102,83,83,21,47,14,15,16,16,16,16,16,16,16,16,0]} 1. e4 {[%emt 0:00:04]} c5 {[%emt 0:00:05]} 2. c4 {[%emt 0:00:07]} Nc6 {[%emt 0:00:37]} 3. Ne2 {[%emt 0:00:18]} Nf6 {[%emt 0:07:44]} 4. Nbc3 {[%emt 0:00:13]} e6 {[%emt 0:00:52]} 5. d4 {[%emt 0:00:22]} cxd4 {[%emt 0:01:23]} 6. Nxd4 {[%emt 0:00:06]} Bb4 {[%emt 0:00:12]} 7. Nxc6 {[%emt 0:00:07]} bxc6 {[%emt 0:00:05]} 8. Bd3 {[%emt 0:00:28]} e5 {[%emt 0:00:28]} 9. O-O {[%emt 0:01:11]} O-O {[%emt 0:00:40]} 10. Qc2 {[%emt 0:00:56]} Bc5 {[%emt 0:30:38]} 11. Na4 {[%emt 0:00:38]} Bd4 {[%emt 0:00:09]} 12. Be3 {[%emt 0:00:37]} Bxe3 {[%emt 0:06:44]} 13. fxe3 {[%emt 0:00:05]} c5 {[%emt 0:00:18]} 14. Rad1 {[%emt 0:18:55]} d6 {[%emt 0:01:07]} 15. Nc3 {[%emt 0:05:14]} Bb7 {[%emt 0:05:25]} 16. Qe2 {[%emt 0:06:39]} Qe7 {[%emt 0:09:34]} 17. Rd2 {[%emt 0:05:13]} Bc6 {[%emt 0:02:28]} 18. Qf3 {[%emt 0:06:28]} Rab8 {[%emt 0:11:46]} 19. Rdf2 {[%emt 0:05:42]} Ne8 {[%emt 0:00:51]} 20. Qh5 {[%emt 0:11:06]} g6 {[%emt 0:01:36]} 21. Qh6 {[%emt 0:01:30]} f6 {[%emt 0:01:59]} 22. Rd2 {[%emt 0:02:57]} Qg7 {[%emt 0:02:16]} 23. Qh4 {[%emt 0:01:01]} Rb7 {[%emt 0:01:55][%cal Bb8b7,Bb7f7,Bf7f6,Bf6h6][%mdl 32]} 24. Be2 {[%emt 0:06:04]} f5 {[%emt 0:04:43]} 25. exf5 {[%emt 0:02:27]} gxf5 {[%emt 0:00:04]} 26. Bf3 {[%emt 0:01:49]} e4 {[%emt 0:01:08]} (26... Bxf3 $16 27. Rxf3 Kh8) 27. Bd1 {[%emt 0:01:44]} (27. Bh5 $18) 27... Rbf7 {[%emt 0:02:41]} 28. Bh5 {[%emt 0:03:09]} Rf6 {[%emt 0:00:52]} 29. Qf4 {[%emt 0:01:59] White is much more active.} Qh6 {[%emt 0:03:23]} 30. Qxh6 {[%emt 0:09:50]} Rxh6 {[%emt 0:00:02]} 31. Bxe8 {[%emt 0:02:05]} Bxe8 {[%emt 0:00:02]} 32. Rdf2 {[%emt 0:03:12]} Bd7 {[%emt 0:01:05]} 33. Ne2 {[%emt 0:01:39]} Rhf6 {[%emt 0:02:07]} 34. Ng3 {[%emt 0:00:39]} Bc8 {[%emt 0:00:52]} 35. b3 {[%emt 0:01:16]} a5 {[%emt 0:00:45]} 36. h3 {[%emt 0:01:12]} Bd7 {[%emt 0:00:56] [#]} 37. Nxe4 $1 {[%emt 0:00:54][%mdl 512]} Re6 {[%emt 0:00:03]} 38. Ng3 {[%emt 0:00:14]} (38. Rxf5 Rxf5 39. Rxf5 Rxe4 40. Rg5+ Kf7 $19) (38. Ng5 $16 Ref6 39. Rf4) 38... Rxe3 $11 {[%emt 0:00:03]} 39. Nxf5 {[%emt 0:00:11]} Rxf5 {[%emt 0:00:36] The position is equal.} 40. Rxf5 {[%emt 0:00:00]} Bxf5 {[%emt 0:00:00]} 41. Rxf5 {[%emt 0:00:07] KR-KR} a4 $1 {[%emt 0:02:48]} 42. Rf3 {[%emt 0:07:38]} Re1+ {[%emt 0:06:37]} 43. Rf1 {[%emt 0:06:49]} Re3 {[%emt 0:00:06]} 44. Rf3 {[%emt 0:08:05] Weighted Error Value: White=0.10 (very precise) /Black=0.11 (very precise) .  Mistake:       	White=2     	Black=1      Inaccurate:     	White=1     	Black=2      OK:         	White=12    	Black=12     Best:        	---       	Black=2      Strong:       	---       	Black=1} 1/2-1/2